bitfinex/quotes_SOLUSD_20250601
["timestamp","ask_amount","ask_price","bid_price","bid_amount"]
[1748769707204,22.71119637,152.25,152.24,2.97615897]
[1748769707523,48.07115129,152.25,152.24,2.97615897]
[1748769708016,29.27934086,152.25,152.24,2.97615897]
[1748769708393,48.21331286,152.25,152.24,2.97615897]
[1748769708589,48.21331286,152.25,152.09,0.08302996]
[1748769708590,26.0,152.22,152.09,0.08302996]
[1748769708817,22.71119637,152.15,152.09,0.08302996]
[1748769709021,36.94,152.15,152.09,0.08302996]
[1748769709193,22.71119637,152.1,152.09,0.08302996]
[1748769709512,0.5318,152.14,152.04,16.44238072]
[1748769709513,22.71119637,152.11,152.04,26.0]
[1748769709718,22.71119637,152.11,152.01,45.73599736]
[1748769710018,0.5318,152.14,152.06,22.71119637]
[1748769710198,0.5318,152.14,152.0,55.29841296]
[1748769710199,50.0,152.07,152.0,55.29841296]
[1748769710517,42.44,152.09,152.0,61.87714141]
[1748769710689,22.71119637,152.06,152.0,61.87714141]
[1748769710899,22.71119637,152.05,152.0,84.58833778]
[1748769711315,22.71119637,152.03,152.0,55.29841296]
[1748769711501,22.71119637,152.05,152.0,55.29841296]
[1748769711811,22.71119637,152.06,152.01,22.71119637]
[1748769712015,22.71119637,152.06,152.0,61.87727205]
[1748769712203,6.3116,152.1,152.0,61.87727205]
[1748769712399,22.71119637,152.09,152.04,22.71119637]
[1748769712714,26.0,152.11,152.05,22.71119637]
[1748769712918,22.71119637,152.1,152.05,22.71119637]
[1748769713304,22.71119637,152.08,152.02,22.71119637]
[1748769713626,22.71119637,152.06,152.01,22.71119637]
[1748769714899,22.71119637,152.06,152.0,61.87727205]
[1748769715103,22.71119637,152.06,152.01,22.71119637]
[1748769715305,22.71119637,152.03,152.0,55.29841296]
[1748769715501,22.71119637,152.03,152.0,61.87730035]
[1748769715711,22.71119637,152.04,152.0,55.29841296]
[1748769715913,22.71119637,152.03,152.0,55.29841296]
[1748769716201,6.57680336,152.05,152.0,55.29841296]
[1748769716202,22.71119637,152.01,152.0,55.29841296]
[1748769716797,68.62,152.02,152.0,55.29841296]
[1748769716997,22.71119637,152.01,152.0,55.29841296]
[1748769717239,6.3116,152.04,152.0,55.29841296]
[1748769717531,68.66,152.03,152.0,55.29841296]
[1748769717699,22.71119637,152.01,152.0,55.29841296]
[1748769717900,11.56,152.01,152.0,55.29841296]
[1748769718100,37.56,152.01,152.0,55.29841296]
[1748769718304,60.27119637,152.01,152.0,55.29841296]
[1748769718538,37.56,152.01,152.0,55.29841296]
[1748769718826,60.27119637,152.01,152.0,55.29841296]
[1748769719209,37.56,152.01,152.0,55.29841296]
[1748769719422,80.5,152.01,152.0,55.29841296]
[1748769719602,77.21119637,152.01,152.0,55.29841296]
[1748769719807,106.50090731,152.01,152.0,55.29841296]
[1748769720006,33.5801,151.98,151.9,10.0]
[1748769720204,26.0,151.94,151.9,10.0]
[1748769720400,26.0,151.94,151.9,32.71119637]
[1748769720610,22.71119637,151.92,151.9,10.0]
[1748769720808,26.0,151.91,151.9,10.0]
[1748769721025,43.12,151.94,151.9,10.0]
[1748769721329,37.37621044,151.99,151.93,29.29296354]
[1748769721518,22.71119637,151.95,151.9,10.0]
[1748769721710,26.0,151.93,151.9,10.0]
[1748769722039,26.0,151.96,151.92,22.71119637]
[1748769722205,43.24,151.96,151.92,22.71119637]
[1748769722722,12.08,151.98,151.95,22.71119637]
[1748769722905,37.37621044,151.99,151.93,18.64964886]
[1748769723116,37.37621044,151.99,151.96,22.71119637]
[1748769723421,37.37621044,151.99,151.97,6.5802461]
[1748769724407,37.37621044,151.99,151.95,22.71119637]
[1748769724607,60.08740681,151.99,151.94,6.58154534]
[1748769724821,60.08740681,151.99,151.95,22.71119637]
[1748769725023,60.08740681,151.99,151.94,6.58154534]
[1748769725024,37.37621044,151.99,151.96,22.71119637]
[1748769725617,37.37621044,151.99,151.97,6.5802461]
[1748769725816,37.37621044,151.99,151.97,29.29144247]
[1748769726023,22.71119637,152.01,151.97,29.29144247]
[1748769726233,22.71119637,152.0,151.96,6.58066493]
[1748769726437,22.71119637,151.99,151.96,6.58066493]
[1748769726643,22.71119637,152.0,151.96,6.58066493]
[1748769727140,75.87772548,152.03,151.96,6.58066493]
[1748769727141,26.0,152.03,151.96,6.58066493]
[1748769727431,22.71119637,152.01,151.96,6.58066493]
[1748769728023,22.71119637,151.97,151.93,29.29317491]
[1748769728243,22.71119637,151.97,151.93,6.58197854]
[1748769728538,22.71119637,151.98,151.93,29.29317491]
[1748769728833,22.71119637,151.98,151.9,45.10709931]
[1748769728834,26.0,151.97,151.9,16.58326178]
[1748769729023,26.0,151.97,151.91,22.71119637]
[1748769729224,48.71119637,151.97,151.92,22.71119637]
[1748769729830,26.0,151.97,151.92,22.71119637]
[1748769730024,26.0,151.97,151.9,16.58326178]
[1748769730025,22.71119637,151.96,151.91,6.5828451]
[1748769730533,22.71119637,151.96,151.91,29.29404147]
[1748769730844,26.0,151.97,151.91,29.29404147]
[1748769731015,22.71119637,151.96,151.91,29.29404147]
[1748769731210,26.0,151.97,151.92,22.71119637]
[1748769731430,12.08,151.98,151.94,22.71119637]
[1748769731637,0.5,151.96,151.93,22.71119637]
[1748769731946,12.08,151.98,151.95,6.5811122]
[1748769732140,12.08,151.98,151.95,29.29230857]
[1748769732841,22.71119637,152.0,151.96,22.71119637]
[1748769733159,48.71119637,152.02,151.97,22.71119637]
[1748769733517,22.71119637,152.01,151.96,22.71119637]
[1748769733718,61.87776025,152.03,151.96,22.71119637]
[1748769734020,22.71119637,152.02,151.98,6.57981313]
[1748769734613,34.79119637,152.03,151.98,29.2910095]
[1748769734813,22.71119637,152.02,151.97,22.71119637]
[1748769735019,22.71119637,151.99,151.94,29.29274171]
[1748769735435,22.71119637,152.0,151.95,22.71119637]
[1748769735753,22.71119637,152.01,151.96,22.71119637]
[1748769736044,61.83770793,152.03,151.96,29.29159519]
[1748769736224,12.08,152.03,152.0,22.71119637]
[1748769736959,12.08,152.08,152.02,22.71119637]
[1748769737269,50.0,152.16,152.02,22.71119637]
[1748769737270,34.79119637,152.13,152.07,22.71119637]
[1748769737441,12.08,152.13,152.04,0.28432314]
[1748769737760,12.08,152.13,152.09,22.71119637]
[1748769737761,34.79119637,152.13,152.09,22.71119637]
[1748769738184,22.71119637,152.12,152.07,22.71119637]
[1748769738336,22.71119637,152.12,152.08,22.71119637]
[1748769738665,26.0,152.08,152.02,22.71119637]
[1748769738957,22.71119637,152.07,152.0,25.51278206]
[1748769739140,22.71119637,152.06,152.02,22.71119637]
[1748769739343,22.71119637,152.07,152.02,22.71119637]
[1748769739737,26.0,152.1,152.03,22.71119637]
[1748769739967,22.71119637,152.08,152.04,22.71119637]
[1748769740146,29.28678383,152.08,152.03,22.71119637]
[1748769741212,22.71119637,152.08,152.04,22.71119637]
[1748769741541,6.57565311,152.08,152.02,18.933972]
[1748769741741,0.5,152.07,152.03,22.71119637]
[1748769742170,0.5,152.07,152.03,29.28869545]
[1748769742340,0.5,152.07,152.03,22.71119637]
[1748769742678,29.78728343,152.07,152.03,22.71119637]
[1748769742967,22.71119637,152.04,151.97,6.2745]
[1748769743164,22.71119637,152.03,151.98,22.71119637]
[1748769744345,12.08,152.06,152.01,22.71119637]
[1748769744560,12.08,152.06,152.02,22.71119637]
[1748769745190,34.79119637,152.06,152.02,22.71119637]
[1748769745350,22.71119637,152.03,151.97,25.2298213]
[1748769745554,22.71119637,152.03,151.98,22.71119637]
[1748769746287,29.28912498,152.03,151.98,22.71119637]
[1748769746498,22.71119637,152.02,151.98,22.71119637]
[1748769746953,0.5,152.01,151.97,22.71119637]
[1748769747154,22.71119637,152.0,151.93,6.58197854]
[1748769747354,22.71119637,151.99,151.95,22.71119637]
[1748769747765,23.21119637,152.01,151.96,22.71119637]
[1748769747960,22.71119637,152.01,151.96,22.71119637]
[1748769748378,29.29014373,152.0,151.95,22.71119637]
[1748769748577,22.71119637,151.99,151.95,22.71119637]
[1748769748986,29.29014373,152.0,151.95,22.71119637]
[1748769749278,43.04,152.04,151.97,22.71119637]
[1748769749454,43.04,152.04,151.99,22.71119637]
[1748769749455,48.71119637,152.03,151.99,22.71119637]
[1748769750179,26.0,152.03,151.99,22.71119637]
[1748769750370,32.57785287,152.03,151.99,22.71119637]
[1748769750764,6.57785287,152.03,151.99,22.71119637]
[1748769750964,55.28798032,152.05,152.0,22.71119637]
[1748769751178,55.28798032,152.05,152.01,22.71119637]
[1748769751482,22.71119637,152.04,152.0,22.71119637]
[1748769752083,22.71119637,152.03,151.98,22.71119637]
[1748769752390,22.71119637,152.01,151.97,22.71119637]
[1748769753379,22.71119637,152.02,151.97,22.71119637]
[1748769753975,22.71119637,152.02,151.98,22.71119637]
[1748769754376,29.28884551,152.03,151.98,22.71119637]
[1748769754958,6.57764914,152.03,151.96,25.51465112]
[1748769755377,29.28884551,152.03,151.98,22.71119637]
[1748769756060,22.71119637,152.03,151.98,22.71119637]
[1748769756370,22.71119637,152.03,151.99,22.71119637]
[1748769756893,7.07733549,152.04,151.99,22.71119637]
[1748769756894,0.5,152.04,152.02,22.71119637]
[1748769757082,12.08,152.11,152.04,6.57721652]
[1748769757381,34.79119637,152.11,152.06,22.71119637]
[1748769757587,22.71119637,152.1,152.04,6.57721652]
[1748769757790,22.71119637,152.07,152.02,6.4445]
[1748769757962,22.71119637,152.04,151.99,41.64516837]
[1748769758280,22.71119637,152.04,151.98,68.278472]
[1748769758281,22.71119637,152.04,152.0,22.71119637]
[1748769758488,22.71119637,152.05,152.0,22.71119637]
[1748769758872,26.0,152.08,152.01,22.71119637]
[1748769759183,22.71119637,152.05,152.01,22.71119637]
[1748769759997,22.71119637,152.04,152.0,22.71119637]
[1748769760202,22.71119637,152.05,152.01,22.71119637]
[1748769760806,22.71119637,152.05,151.99,25.22887067]
[1748769760992,22.71119637,152.05,152.01,22.71119637]
[1748769761899,32.57607704,152.07,152.01,22.71119637]
[1748769761900,26.0,152.07,152.01,22.71119637]
[1748769762185,22.71119637,152.06,152.02,22.71119637]
[1748769762407,22.71119637,152.03,151.98,6.57973347]
[1748769762609,22.71119637,152.03,151.98,29.29092984]
[1748769762785,22.71119637,152.03,151.99,22.71119637]
[1748769763116,22.71119637,152.04,151.99,29.29044341]
[1748769763296,12.08,152.05,152.01,22.71119637]
[1748769763490,41.36804005,152.05,151.99,6.57924704]
[1748769763691,41.36804005,152.05,152.0,22.71119637]
[1748769763904,34.79119637,152.05,152.0,22.71119637]
[1748769764209,22.71119637,152.03,151.95,6.5811122]
[1748769764413,22.71119637,152.01,151.96,22.71119637]
[1748769764725,22.71119637,151.98,151.92,1.5231]
[1748769764914,29.29107641,151.98,151.93,22.71119637]
[1748769765087,29.29107641,151.98,151.92,8.10541619]
[1748769765285,29.29107641,151.98,151.93,22.71119637]
[1748769765693,22.71119637,151.97,151.92,24.23429637]
[1748769765907,22.71119637,151.96,151.91,22.71119637]
[1748769766224,22.71119637,151.95,151.91,22.71119637]
[1748769766412,22.71119637,151.94,151.9,32.71119637]
[1748769766614,22.71119637,151.95,151.9,32.71119637]
[1748769766994,6.58154534,151.94,151.9,32.71119637]
[1748769767199,29.29274171,151.94,151.9,32.71119637]
[1748769767715,29.29245752,151.95,151.91,22.71119637]
[1748769768088,29.29245752,151.95,151.9,32.71119637]
[1748769769089,29.29220397,151.96,151.91,22.71119637]
[1748769769292,29.29220397,151.96,151.92,22.71119637]
[1748769769700,26.95888951,151.96,151.92,22.71119637]
[1748769769912,6.58027675,151.97,151.93,22.71119637]
[1748769770113,22.71119637,151.95,151.91,22.71119637]
[1748769770320,22.71119637,151.94,151.9,32.71119637]
[1748769770493,22.71119637,151.91,151.9,10.0]
[1748769770900,55.02,151.93,151.9,10.0]
[1748769771248,55.02,151.93,151.86,1.0]
[1748769771249,26.0,151.87,151.86,1.0]
[1748769771434,91.79119637,151.87,151.86,1.0]
[1748769771597,26.47933941,151.92,151.86,2.5124]
[1748769771797,6.57938022,151.99,151.87,46.0801541]
[1748769772005,12.08,152.08,151.86,13.45258532]
[1748769772006,12.08,151.98,151.91,22.71119637]
[1748769772203,43.76,152.03,151.97,22.71119637]
[1748769772204,22.71119637,152.03,151.97,22.71119637]
[1748769772520,22.71119637,152.02,151.96,22.71119637]
[1748769772817,35.29119637,152.04,151.98,22.71119637]
[1748769773025,22.71119637,152.02,151.97,0.28432314]
[1748769773229,22.71119637,152.03,151.97,29.57554178]
[1748769773520,35.29119637,152.04,151.99,22.71119637]
[1748769773817,12.58,152.04,152.0,22.71119637]
[1748769774402,35.29119637,152.04,151.98,18.933972]
[1748769774622,22.71119637,152.02,151.98,18.933972]
[1748769774800,35.29119637,152.04,151.98,41.64516837]
[1748769775210,12.58,152.04,152.03,22.71119637]
[1748769775396,22.71119637,152.11,152.04,18.933972]
[1748769775596,35.29119637,152.11,152.06,22.71119637]
[1748769775821,22.71119637,152.08,152.03,22.71119637]
[1748769776216,38.58,152.11,152.01,18.933972]
[1748769776217,22.71119637,152.09,152.04,22.71119637]
[1748769776936,12.58,152.11,152.05,22.71119637]
[1748769776937,22.71119637,152.1,152.05,22.71119637]
[1748769777239,22.71119637,152.1,152.06,6.57635144]
[1748769777806,12.58,152.11,152.06,6.57635144]
[1748769778121,12.58,152.11,152.06,29.28754781]
[1748769778303,35.29119637,152.11,152.06,29.28754781]
[1748769778697,12.58,152.11,152.06,29.28754781]
[1748769778904,35.29119637,152.11,152.06,29.28754781]
[1748769779503,12.58,152.11,152.06,29.28754781]
[1748769779714,35.29119637,152.11,152.06,29.28754781]
[1748769779902,12.58,152.11,152.07,22.71119637]
[1748769780109,12.58,152.11,152.06,29.28754781]
[1748769780110,35.29119637,152.11,152.06,29.28754781]
[1748769780334,12.58,152.11,152.07,22.71119637]
[1748769781247,144.5308,152.17,152.09,22.71119637]
[1748769781248,100.7908,152.17,152.09,22.71119637]
[1748769781412,22.71119637,152.15,152.11,22.71119637]
[1748769781730,35.29119637,152.16,152.11,29.28502323]
[1748769782141,12.58,152.16,152.14,22.71119637]
[1748769782311,94.76,152.17,152.14,22.71119637]
[1748769782640,22.71119637,152.16,152.07,7.6806]
[1748769782834,22.71119637,152.14,152.09,22.71119637]
[1748769783007,22.71119637,152.14,152.1,22.71119637]
[1748769783404,22.71119637,152.13,152.08,22.71119637]
[1748769783711,12.56,152.13,152.09,22.71119637]
[1748769783905,12.56,152.13,152.11,22.71119637]
[1748769784308,12.56,152.13,152.1,22.71119637]
[1748769785049,35.27119637,152.13,152.08,22.71119637]
[1748769785252,22.71119637,152.12,152.08,22.71119637]
[1748769785455,22.71119637,152.11,152.07,22.71119637]
[1748769785637,22.71119637,152.11,152.06,41.36084523]
[1748769785842,22.71119637,152.11,152.06,47.9370397]
[1748769786323,22.71119637,152.11,152.06,41.36084523]
[1748769786514,22.71119637,152.11,152.07,22.71119637]
[1748769787240,38.56,152.13,152.08,22.71119637]
[1748769787415,22.71119637,152.12,152.08,22.71119637]
[1748769787619,12.56,152.13,152.09,22.71119637]
[1748769787849,12.56,152.13,152.09,29.28607836]
[1748769788056,12.56,152.13,152.09,22.71119637]
[1748769788057,35.27119637,152.13,152.09,22.71119637]
[1748769788220,35.27119637,152.13,152.08,22.71119637]
[1748769788534,22.71119637,152.12,152.08,22.71119637]
[1748769788728,22.71119637,152.11,152.06,22.99551951]
[1748769789429,22.71119637,152.11,152.07,22.71119637]
[1748769789821,22.71119637,152.12,152.07,22.71119637]
[1748769790065,22.71119637,152.08,152.05,18.933972]
[1748769790238,76.1818,152.12,152.03,22.71119637]
[1748769790435,22.71119637,152.08,152.01,18.64964886]
[1748769790764,22.71119637,152.07,152.03,22.71119637]
[1748769791066,22.71119637,152.08,152.03,22.71119637]
[1748769791279,22.71119637,152.08,152.01,25.22816343]
[1748769791280,12.56,152.13,152.08,18.933972]
[1748769791467,12.56,152.13,152.11,22.71119637]
[1748769791666,12.56,152.13,152.08,18.933972]
[1748769791667,12.56,152.13,152.12,22.71119637]
[1748769792532,12.56,152.13,152.11,22.71119637]
[1748769792835,12.56,152.13,152.07,7.8375]
[1748769793035,12.56,152.13,152.06,18.64964886]
[1748769793036,22.71119637,152.1,152.06,18.64964886]
[1748769793259,22.71119637,152.1,152.06,41.36084523]
[1748769793442,22.71119637,152.09,152.04,41.36084523]
[1748769793645,22.71119637,152.09,152.04,18.64964886]
[1748769793858,22.71119637,152.1,152.06,22.71119637]
[1748769794153,22.71119637,152.1,152.05,22.71119637]
[1748769794330,29.28587502,152.1,152.05,22.71119637]
[1748769794754,22.71119637,152.11,152.06,22.71119637]
[1748769794962,22.71119637,152.1,152.06,22.71119637]
[1748769795369,19.13338709,152.13,152.08,22.71119637]
[1748769795657,22.71119637,152.11,152.07,22.71119637]
[1748769796239,29.2850999,152.12,152.07,22.71119637]
[1748769796766,29.2850999,152.12,152.06,6.57620621]
[1748769796767,22.71119637,152.11,152.06,6.57620621]
[1748769796949,22.71119637,152.11,152.06,22.71119637]
[1748769797553,22.71119637,152.11,152.06,29.28749711]
[1748769797754,22.71119637,152.08,152.03,97.69483706]
[1748769797991,55.28585838,152.1,152.05,22.71119637]
[1748769798481,55.28585838,152.1,152.04,25.22657761]
[1748769798482,55.28585838,152.1,152.06,22.71119637]
[1748769798866,6.57425294,152.11,152.07,22.71119637]
[1748769799573,19.1334666,152.13,152.09,22.71119637]
[1748769800664,22.71119637,152.11,152.06,22.71119637]
[1748769801063,22.71119637,152.12,152.07,22.71119637]
[1748769801359,41.84466297,152.13,152.05,18.933972]
[1748769801569,19.1334666,152.13,152.08,22.71119637]
[1748769801777,41.84466297,152.13,152.08,22.71119637]
[1748769803688,22.71119637,152.12,152.08,22.71119637]
[1748769804290,19.1334666,152.13,152.08,22.71119637]
[1748769804291,41.84466297,152.13,152.08,22.71119637]
[1748769804489,41.84466297,152.13,152.09,22.71119637]
[1748769804785,41.84466297,152.13,152.08,22.71119637]
[1748769804975,19.1334666,152.13,152.09,41.64516837]
[1748769805174,22.71119637,152.13,152.08,22.71119637]
[1748769805370,22.71119637,152.12,152.07,41.64516837]
[1748769805698,22.71119637,152.12,152.08,22.71119637]
[1748769806487,22.71119637,152.12,152.07,41.64516837]
[1748769806872,22.71119637,152.14,152.09,22.71119637]
[1748769807086,22.71119637,152.13,152.09,22.71119637]
[1748769807390,22.71119637,152.13,152.08,22.71119637]
[1748769808088,29.28408975,152.14,152.09,22.71119637]
[1748769808663,22.71119637,152.13,152.09,22.71119637]
[1748769808867,6.57375755,152.12,152.09,22.71119637]
[1748769811069,29.28424837,152.14,152.09,22.71119637]
[1748769811289,6.573052,152.14,152.1,22.71119637]
[1748769811474,29.28424837,152.14,152.1,22.71119637]
[1748769811878,32.57259481,152.15,152.11,22.71119637]
[1748769812267,6.57259481,152.15,152.11,22.71119637]
[1748769812665,6.57259481,152.15,152.12,22.71119637]
[1748769813594,6.57259481,152.15,152.11,22.71119637]
[1748769816095,22.71119637,152.13,152.09,22.71119637]
[1748769816579,45.71494464,152.15,152.1,22.71119637]
[1748769816769,29.28379118,152.15,152.1,22.71119637]
[1748769818079,22.71119637,152.14,152.09,22.71119637]
[1748769818286,22.71119637,152.13,152.08,22.71119637]
[1748769819285,22.71119637,152.13,152.09,22.71119637]
[1748769819873,6.57375755,152.12,152.09,22.71119637]
[1748769820572,6.57375755,152.12,152.1,22.71119637]
[1748769821197,39.14234983,152.15,152.1,22.71119637]
[1748769822085,6.57289338,152.14,152.1,22.71119637]
[1748769824975,22.71119637,152.13,152.07,22.71119637]
[1748769825179,22.71119637,152.12,152.05,6.57661843]
[1748769825404,22.71119637,152.11,152.05,22.71119637]
[1748769825783,22.71119637,152.11,152.06,22.71119637]
[1748769826583,72.18462288,152.13,152.08,22.71119637]
[1748769826789,6.57342651,152.13,152.09,22.71119637]
[1748769827384,22.71119637,152.12,152.07,41.64516837]
[1748769827907,6.57342651,152.13,152.06,0.28432314]
[1748769828110,22.71119637,152.12,152.08,18.933972]
[1748769828487,6.57289338,152.14,152.08,41.64516837]
[1748769828693,22.71119637,152.13,152.08,41.64516837]
[1748769829391,22.71119637,152.13,152.08,22.71119637]
[1748769830283,29.28408975,152.14,152.08,29.28668001]
[1748769830493,29.28408975,152.14,152.09,22.71119637]
[1748769830705,29.28408975,152.14,152.1,22.71119637]
[1748769831101,22.71119637,152.12,152.04,18.933972]
[1748769831320,22.71119637,152.12,152.07,22.71119637]
[1748769831692,22.71119637,152.13,152.08,22.71119637]
[1748769832393,55.28406426,152.15,152.1,41.64516837]
[1748769832717,55.28406426,152.15,152.07,18.933972]
[1748769832718,22.71119637,152.14,152.09,22.71119637]
[1748769832893,12.3,152.16,152.12,22.71119637]
[1748769833097,6.57122598,152.18,152.14,22.71119637]
[1748769833802,6.57122598,152.18,152.12,18.933972]
[1748769833803,29.28242235,152.18,152.13,22.71119637]
[1748769834202,22.71119637,152.17,152.13,22.71119637]
[1748769834395,22.71119637,152.14,152.09,22.71119637]
[1748769834601,22.71119637,152.14,152.1,22.71119637]
[1748769834795,22.71119637,152.15,152.11,22.71119637]
[1748769835117,22.71119637,152.15,152.1,22.71119637]
[1748769836117,26.0,152.17,152.1,22.71119637]
[1748769836118,29.28408975,152.14,152.1,22.71119637]
[1748769836915,6.57289338,152.14,152.1,22.71119637]
[1748769837501,6.57289338,152.14,152.11,22.71119637]
[1748769838102,29.28379468,152.15,152.11,22.71119637]
[1748769839028,29.28379468,152.15,152.09,6.57478211]
[1748769839199,29.28379468,152.15,152.1,22.71119637]
[1748769839393,29.28379468,152.15,152.11,22.71119637]
[1748769840621,15.2055714,152.15,152.11,15.2055714]
[1748769841718,33.67731877,152.17,152.13,15.2055714]
[1748769842102,33.67731877,152.17,152.12,15.2055714]
[1748769842616,33.67731877,152.17,152.13,15.2055714]
[1748769842821,18.47174737,152.17,152.12,15.2055714]
[1748769843018,33.67731877,152.17,152.12,15.2055714]
[1748769843394,26.0,152.19,152.14,15.2055714]
[1748769843395,6.57124063,152.18,152.14,15.2055714]
[1748769843805,21.77681203,152.18,152.13,33.85522026]
[1748769844004,6.57124063,152.18,152.14,15.2055714]
[1748769844403,47.7764721,152.19,152.14,15.2055714]
[1748769845613,47.7764721,152.19,152.14,21.77841909]
[1748769846348,15.2055714,152.18,152.14,15.2055714]
[1748769846721,21.77692053,152.18,152.14,15.2055714]
[1748769847214,21.77643489,152.19,152.14,21.77845358]
[1748769847522,21.77643489,152.19,152.14,15.2055714]
[1748769847898,15.2055714,152.18,152.14,15.2055714]
[1748769848199,15.2055714,152.18,152.11,104.8055714]
[1748769848200,15.2055714,152.15,152.11,104.8055714]
[1748769848608,15.2055714,152.15,152.11,15.2055714]
[1748769848832,15.2055714,152.15,152.11,33.85522026]
[1748769849709,15.2055714,152.15,152.11,40.4294015]
[1748769849905,21.77798225,152.16,152.12,15.2055714]
[1748769850331,15.2055714,152.15,152.11,18.64964886]
[1748769850630,15.2055714,152.16,152.12,15.2055714]
[1748769850801,21.77764015,152.16,152.12,15.2055714]
[1748769852034,15.2055714,152.16,152.12,15.2055714]
[1748769852216,11.9,152.17,152.14,15.2055714]
[1748769852418,11.9,152.17,152.16,15.2055714]
[1748769852600,11.9,152.17,152.15,15.2055714]
[1748769852808,21.77596501,152.2,152.15,15.2055714]
[1748769853104,11.9,152.22,152.17,15.2055714]
[1748769853309,8.00101326,152.26,152.18,0.28432314]
[1748769853526,15.2055714,152.22,152.18,0.28432314]
[1748769853703,15.2055714,152.21,152.17,15.2055714]
[1748769854931,15.2055714,152.22,152.17,33.85522026]
[1748769855133,15.2055714,152.22,152.17,40.42672405]
[1748769855635,26.0,152.25,152.18,15.2055714]
[1748769855810,15.2055714,152.24,152.19,34.1395434]
[1748769856741,21.77431605,152.24,152.19,34.1395434]
[1748769857039,15.2055714,152.24,152.2,15.2055714]
[1748769858212,6.5672818,152.27,152.22,33.85522026]
[1748769858538,6.5672818,152.27,152.21,6.85413412]
[1748769858539,15.2055714,152.27,152.21,6.56981098]
[1748769858838,15.2055714,152.26,152.22,18.933972]
[1748769859945,6.56745587,152.27,152.22,18.933972]
[1748769860120,15.2055714,152.26,152.22,18.933972]
[1748769860721,15.2055714,152.26,152.22,34.1395434]
[1748769861359,6.56745587,152.27,152.22,34.1395434]
[1748769861537,6.56613408,152.3,152.26,15.2055714]
[1748769861842,21.77075645,152.32,152.27,15.2055714]
[1748769862144,21.77075645,152.32,152.28,15.2055714]
[1748769862308,6.56518505,152.32,152.28,15.2055714]
[1748769862515,21.77038933,152.33,152.29,15.2055714]
[1748769862715,18.46434619,152.34,152.3,0.28432314]
[1748769862950,15.2055714,152.33,152.3,18.933972]
[1748769863827,21.77027454,152.33,152.3,18.933972]
[1748769864013,33.66986123,152.34,152.3,34.1395434]
[1748769864633,15.2055714,152.33,152.3,0.28432314]
[1748769864833,18.46428983,152.34,152.3,0.28432314]
[1748769865030,15.2055714,152.33,152.3,0.28432314]
[1748769865226,26.0,152.31,152.25,18.64964886]
[1748769865653,15.2055714,152.29,152.25,18.64964886]
[1748769865822,21.77188938,152.3,152.26,0.28432314]
[1748769866141,15.2055714,152.32,152.3,0.14216157]
[1748769866927,47.77039094,152.33,152.3,0.14216157]
[1748769867245,15.2055714,152.32,152.3,0.14216157]
[1748769867814,21.77086079,152.32,152.3,0.14216157]
[1748769868244,15.2055714,152.31,152.28,0.28432314]
[1748769868722,22.76393704,152.3,152.28,0.28432314]
[1748769868921,6.56528939,152.32,152.25,18.64964886]
[1748769868922,22.76393704,152.29,152.25,18.64964886]
[1748769869150,22.97810451,152.32,152.27,18.64964886]
[1748769869151,22.76393704,152.31,152.27,18.64964886]
[1748769869327,22.76393704,152.31,152.28,0.14216157]
[1748769869522,22.76393704,152.31,152.28,0.28432314]
[1748769869844,22.76393704,152.31,152.28,0.14216157]
[1748769870020,29.32969776,152.31,152.28,0.14216157]
[1748769872243,22.76393704,152.3,152.25,41.69790904]
[1748769872446,22.76393704,152.29,152.25,41.69790904]
[1748769872657,22.76393704,152.29,152.25,41.4135859]
[1748769872858,22.76393704,152.3,152.25,41.4135859]
[1748769873042,29.32969776,152.31,152.28,0.14216157]
[1748769874049,6.56576072,152.31,152.28,0.14216157]
[1748769874261,29.32969776,152.31,152.28,0.14216157]
[1748769875459,29.32918738,152.32,152.28,0.28432314]
[1748769878055,6.56525034,152.32,152.28,23.04826018]
[1748769878366,6.56525034,152.32,152.3,0.14216157]
[1748769878569,55.32878809,152.33,152.3,0.14216157]
[1748769878880,41.22832796,152.34,152.3,0.28432314]
[1748769880249,18.46439092,152.34,152.3,23.04826018]
[1748769880780,26.0,152.36,152.32,18.933972]
[1748769881067,11.68,152.37,152.34,18.933972]
[1748769881379,18.24308013,152.37,152.34,41.69790904]
[1748769881945,11.68,152.37,152.34,41.69790904]
[1748769882140,11.68,152.37,152.36,0.14216157]
[1748769883168,11.68,152.37,152.36,18.933972]
[1748769883473,6.56247294,152.39,152.36,18.933972]
[1748769884049,6.56247294,152.39,152.36,0.28432314]
[1748769884277,6.56247294,152.39,152.36,18.933972]
[1748769884952,22.76393704,152.37,152.32,22.76393704]
[1748769885152,22.76393704,152.36,152.32,18.64964886]
[1748769885356,22.76393704,152.37,152.32,41.4135859]
[1748769885682,29.32640998,152.39,152.35,0.28432314]
[1748769886059,29.32640998,152.39,152.35,23.04826018]